bitfinex/quotes_SOLUSD_20250811
["timestamp","ask_amount","ask_price","bid_price","bid_amount"]
[1754876762911,10.33368326,183.48,183.47,1e-08]
[1754876763099,49.53368326,183.48,183.47,1e-08]
[1754876763424,11.05368326,183.48,183.47,1e-08]
[1754876763591,5.4501853,183.48,183.47,0.69000001]
[1754876764628,39.2,183.49,183.47,0.69000001]
[1754876764822,5.44973898,183.5,183.47,0.69000001]
[1754876765020,44.64936305,183.51,183.47,0.69000001]
[1754876765434,4.88349796,183.5,183.48,0.69]
[1754876765729,4.88349796,183.49,183.47,1e-08]
[1754876765953,4.88349796,183.49,183.48,0.69]
[1754876766653,10.33338623,183.49,183.48,0.69]
[1754876766803,10.33338623,183.49,183.47,1e-08]
[1754876767449,4.88349796,183.48,183.47,1e-08]
[1754876768026,4.88349796,183.48,183.47,0.69000001]
[1754876768403,44.64988827,183.49,183.47,0.69000001]
[1754876768404,49.53338623,183.49,183.47,0.69000001]
[1754876768822,4.88349796,183.48,183.47,1e-08]
[1754876769331,44.64988827,183.49,183.47,1e-08]
[1754876769540,4.88349796,183.48,183.47,1e-08]
[1754876770423,10.33368326,183.48,183.47,1e-08]
[1754876770956,10.19389638,183.48,183.47,1e-08]
[1754876771230,15.07739434,183.48,183.47,1e-08]
[1754876772842,54.25739434,183.48,183.47,1e-08]
[1754876773142,53.53739434,183.48,183.47,1e-08]
[1754876774043,9.47389638,183.48,183.47,0.69000001]
[1754876774210,39.18,183.48,183.47,0.69000001]
[1754876774916,5.44963397,183.5,183.47,0.69000001]
[1754876774917,49.51313193,183.5,183.47,0.69000001]
[1754876775115,49.51313193,183.5,183.48,0.69]
[1754876775545,39.18,183.5,183.47,1e-08]
[1754876775909,39.18,183.5,183.47,0.69000001]
[1754876776129,44.62959128,183.5,183.47,0.69000001]
[1754876776437,49.51308924,183.5,183.47,0.69000001]
[1754876776637,44.62959128,183.5,183.47,0.69000001]
[1754876776840,39.18,183.5,183.48,0.69]
[1754876777047,44.62959802,183.5,183.47,1e-08]
[1754876777217,44.62959802,183.5,183.48,0.69]
[1754876777541,39.18,183.5,183.48,0.69]
[1754876777842,0.72,183.55,183.49,0.69]
[1754876778046,48.09796734,183.54,183.49,0.69]
[1754876778255,4.03446938,183.53,183.49,0.69]
[1754876778408,4.03446938,183.52,183.49,0.69]
[1754876778612,4.03446938,183.51,183.49,0.69]
[1754876778915,4.03446938,183.51,183.5,0.69]
[1754876779114,4.03446938,183.51,183.48,0.69]
[1754876779437,10.33249534,183.52,183.49,0.69]
[1754876779438,4.03446938,183.5,183.49,0.69]
[1754876779969,13.62062802,183.55,183.49,0.69]
[1754876779970,0.03,183.56,183.5,0.69]
[1754876780144,4.04106679,183.55,183.51,4.88349796]
[1754876780342,0.03,183.56,183.52,0.69]
[1754876780343,4.04106679,183.54,183.52,0.69]
[1754876780571,4.04106679,183.53,183.52,0.69]
[1754876780739,4.04106679,183.55,183.51,4.88349796]
[1754876780940,9.64456475,183.54,183.48,4.88349796]
[1754876781156,4.04106679,183.53,183.48,4.88349796]
[1754876781346,4.04106679,183.52,183.49,0.69]
[1754876781669,4.04106679,183.51,183.5,0.69]
[1754876782049,4.04106679,183.53,183.5,0.69]
[1754876782249,4.04106679,183.52,183.51,0.69]
[1754876782453,4.04106679,183.52,183.5,4.88349796]
[1754876782659,4.91349796,183.56,183.5,4.88349796]
[1754876782862,4.05239743,183.55,183.5,4.88349796]
[1754876783039,4.05239743,183.54,183.51,0.69]
[1754876783242,4.05239743,183.53,183.51,0.69]
[1754876783466,4.91349796,183.56,183.51,0.69]
[1754876783467,4.05239743,183.52,183.51,0.69]
[1754876783661,4.05239743,183.52,183.5,4.88349796]
[1754876783868,4.88349796,183.55,183.48,15.10621557]
[1754876784049,4.05568643,183.54,183.49,4.88349796]
[1754876784247,9.65918439,183.53,183.48,0.69]
[1754876784474,8.93918439,183.52,183.48,0.69]
[1754876784666,4.05568643,183.51,183.48,0.69]
[1754876784970,4.05568643,183.5,183.48,0.69]
[1754876785152,4.05568643,183.49,183.48,0.69]
[1754876786471,5.44935579,183.51,183.48,5.57349796]
[1754876786674,5.44935579,183.51,183.47,30.88349797]
[1754876786861,5.44935579,183.51,183.49,0.69]
[1754876787761,5.44899738,183.52,183.49,0.69]
[1754876787957,4.88349796,183.5,183.47,1e-08]
[1754876788378,5.60349796,183.49,183.47,1e-08]
[1754876789051,0.72,183.48,183.47,1e-08]
[1754876789250,5.60349796,183.48,183.47,1e-08]
[1754876789656,15.12410656,183.48,183.47,1e-08]
[1754876790266,20.00760452,183.48,183.47,1e-08]
[1754876793249,15.10621557,183.47,183.43,0.06]
[1754876793454,4.88349796,183.44,183.43,0.06]
[1754876793654,8.95392126,183.44,183.43,0.06]
[1754876793883,9.67365263,183.44,183.43,0.06]
[1754876794472,11.0548717,183.44,183.43,0.06]
[1754876794987,39.14,183.46,183.43,0.73]
[1754876794988,5.45077946,183.46,183.43,0.73]
[1754876795688,5.45077946,183.46,183.44,0.67]
[1754876795894,5.45077946,183.46,183.43,0.06]
[1754876796063,5.45077946,183.46,183.45,0.67]
[1754876797403,5.45077946,183.46,183.43,0.06]
[1754876797404,11.05427742,183.46,183.43,0.06]
[1754876797559,4.88349796,183.44,183.43,0.06]
[1754876797981,5.60349796,183.44,183.43,0.06]
[1754876798464,11.0548717,183.44,183.43,0.06]
[1754876800595,11.0548717,183.44,183.43,1e-08]
[1754876801460,15.12380252,183.44,183.43,1e-08]
[1754876803000,26.0,183.41,183.37,0.06]
[1754876803195,4.88349796,183.38,183.37,0.06]
[1754876803702,4.88349796,183.38,183.35,0.67]
[1754876803899,4.88349796,183.36,183.32,0.67]
[1754876804087,4.88349796,183.35,183.32,0.67]
[1754876804289,0.72,183.37,183.33,0.67]
[1754876804290,4.88349796,183.36,183.33,0.67]
[1754876804603,5.45404963,183.35,183.34,0.67]
[1754876804801,5.45380036,183.36,183.35,0.67]
[1754876805001,39.12,183.4,183.35,5.55349796]
[1754876805305,39.12,183.4,183.31,26.0]
[1754876805306,44.00349796,183.4,183.36,0.67]
[1754876805482,4.88349796,183.39,183.36,0.67]
[1754876805680,4.88349796,183.38,183.33,0.67]
[1754876806095,4.88349796,183.37,183.31,4.88349796]
[1754876806288,39.84,183.4,183.34,0.67]
[1754876806605,39.84,183.4,183.36,10.33725014]
[1754876806606,39.12,183.4,183.36,10.33725014]
[1754876806813,39.12,183.4,183.37,0.67]
[1754876806974,39.12,183.4,183.31,28.74376588]
[1754876806975,39.12,183.4,183.38,0.67]
[1754876807406,39.12,183.4,183.39,0.67]
[1754876809109,44.5725627,183.4,183.39,0.67]
[1754876809283,5.4525627,183.4,183.39,0.67]
[1754876809808,5.45228381,183.41,183.39,0.67]
[1754876810708,5.45077946,183.46,183.4,0.67]
[1754876810891,45.28993315,183.49,183.45,4.88349796]
[1754876811078,39.29,183.52,183.46,5.55349796]
[1754876811079,0.03,183.52,183.46,5.55349796]
[1754876811282,39.12,183.51,183.46,5.55349796]
[1754876811481,4.05964991,183.5,183.46,5.55349796]
[1754876812210,5.44988827,183.49,183.46,5.55349796]
[1754876812507,5.44988827,183.49,183.46,0.67]
[1754876812713,5.44988827,183.49,183.47,0.67]
[1754876813291,5.44988827,183.49,183.44,5.55349796]
[1754876813596,4.88349796,183.48,183.44,0.67]
[1754876813797,4.88349796,183.48,183.41,5.55349796]
[1754876813798,4.88349796,183.47,183.41,5.55349796]
[1754876813985,0.72,183.48,183.42,5.55349796]
[1754876813986,44.70349796,183.48,183.42,5.55349796]
[1754876814182,5.45077946,183.46,183.4,0.67]
[1754876814387,4.88349796,183.43,183.38,0.67]
[1754876814593,4.88349796,183.43,183.38,4.88349796]
[1754876814793,4.88349796,183.41,183.36,0.67]
[1754876815022,4.88349796,183.41,183.36,4.88349796]
[1754876815188,0.72,183.42,183.37,0.67]
[1754876815390,4.88349796,183.41,183.37,0.67]
[1754876815718,5.60349796,183.42,183.37,0.67]
[1754876815881,4.88349796,183.43,183.38,0.67]
[1754876816205,5.60349796,183.43,183.38,0.67]
[1754876816511,5.45196816,183.42,183.38,0.67]
[1754876817194,5.45196816,183.42,183.39,0.67]
[1754876818425,5.45196816,183.42,183.37,5.55349796]
[1754876818607,5.45196816,183.42,183.38,0.67]
[1754876818791,5.45196816,183.42,183.39,0.67]
[1754876818988,0.72,183.41,183.36,4.88349796]
[1754876819290,5.45196816,183.42,183.35,39.12]
[1754876819291,5.60349796,183.4,183.35,39.12]
[1754876819592,5.45196816,183.42,183.34,26.0]
[1754876819593,5.60349796,183.39,183.34,26.0]
[1754876819808,0.72,183.39,183.33,4.94349796]
[1754876820016,39.1,183.41,183.33,4.94349796]
[1754876820234,4.88349796,183.4,183.34,0.7]
[1754876820433,4.88349796,183.4,183.34,5.58349796]
[1754876820945,4.88349796,183.39,183.34,0.7]
[1754876821115,5.45315737,183.38,183.34,0.7]
[1754876821525,5.45315737,183.38,183.33,4.94349796]
[1754876821724,5.4525627,183.4,183.35,0.7]
[1754876821941,5.4525627,183.4,183.36,0.7]
[1754876822116,5.4525627,183.4,183.36,5.58349796]
[1754876822437,0.69,183.39,183.34,0.7]
[1754876822608,0.69,183.39,183.33,0.06]
[1754876822811,4.88349796,183.38,183.33,0.06]
[1754876823020,5.45341657,183.38,183.34,5.58349796]
[1754876823223,5.452796,183.4,183.36,4.88349796]
[1754876823517,5.452796,183.4,183.37,0.7]
[1754876823723,44.5523196,183.41,183.38,0.7]
[1754876824121,5.45199377,183.42,183.38,4.88349796]
[1754876824337,5.45199377,183.42,183.39,0.7]
[1754876824516,6.14048236,183.47,183.41,4.88349796]
[1754876824728,6.14048236,183.47,183.42,4.88349796]
[1754876824926,5.57349796,183.46,183.4,4.88349796]
[1754876825242,10.20035519,183.45,183.4,4.88349796]
[1754876825425,10.20035519,183.45,183.41,5.58349796]
[1754876825426,5.45107658,183.45,183.41,5.58349796]
[1754876825629,5.45107658,183.45,183.42,0.7]
[1754876826653,5.45077946,183.46,183.42,0.7]
[1754876826829,5.45077946,183.46,183.42,5.58349796]
[1754876827024,5.45077946,183.46,183.43,0.7]
[1754876827421,5.45077946,183.46,183.43,5.58349796]
[1754876827621,0.03,183.48,183.44,5.58349796]
[1754876827847,0.03,183.48,183.45,5.58349796]
[1754876828248,5.48024323,183.48,183.45,5.58349796]
[1754876828451,5.48024323,183.48,183.44,4.88349796]
[1754876828634,5.45076531,183.47,183.44,5.58349796]
[1754876829229,5.45076531,183.47,183.44,4.88349796]
[1754876829428,5.45076531,183.47,183.45,0.7]
[1754876829942,5.45076531,183.47,183.44,4.88349796]
[1754876830142,0.69,183.46,183.4,0.7]
[1754876830352,5.45076531,183.47,183.43,4.88349796]
[1754876830663,5.4801853,183.48,183.43,5.58349796]
[1754876830958,5.4801853,183.48,183.44,5.58349796]
[1754876831457,5.4801853,183.48,183.45,0.7]
[1754876832028,5.4801853,183.48,183.4,5.4525627]
[1754876832029,4.88349796,183.46,183.41,0.7]
[1754876832262,5.57349796,183.47,183.41,5.58349796]
[1754876832466,0.69,183.47,183.42,5.58349796]
[1754876832767,5.45077946,183.46,183.43,0.7]
[1754876832949,5.45077946,183.46,183.43,5.58349796]
[1754876833577,5.45077946,183.46,183.39,26.0]
[1754876833870,0.69,183.45,183.4,5.58349796]
[1754876834070,5.45077946,183.46,183.41,5.58349796]
[1754876834243,5.45077946,183.46,183.42,0.7]
[1754876834567,6.14077946,183.46,183.42,0.7]
[1754876835073,5.45077946,183.46,183.42,4.88349796]
[1754876835250,0.03,183.48,183.43,5.58349796]
[1754876835251,5.4505268,183.47,183.43,5.58349796]
[1754876835453,5.4505268,183.47,183.44,0.7]
[1754876835652,5.4505268,183.47,183.43,4.88349796]
[1754876835864,6.1405268,183.47,183.43,5.58349796]
[1754876836579,0.69,183.46,183.41,5.58349796]
[1754876836871,5.45107658,183.45,183.41,5.58349796]
[1754876837073,5.45107658,183.45,183.42,5.58349796]
[1754876837570,5.45107658,183.45,183.42,4.88349796]
[1754876837774,5.45107658,183.45,183.42,5.58349796]
[1754876838481,5.45107658,183.45,183.36,128.68]
[1754876838482,4.88349796,183.43,183.37,0.7]
[1754876838880,5.45167093,183.43,183.38,4.88349796]
[1754876839085,5.45167093,183.43,183.39,0.7]
[1754876839254,5.45167093,183.43,183.4,0.7]
[1754876839456,5.45167093,183.43,183.38,5.58349796]
[1754876839457,6.14167093,183.43,183.38,5.58349796]
[1754876840085,6.14167093,183.43,183.38,4.88349796]
[1754876840386,5.45137374,183.44,183.39,0.7]
[1754876840589,11.0248717,183.44,183.39,0.7]
[1754876840755,0.69,183.43,183.36,65.08]
[1754876841115,4.88349796,183.4,183.36,39.08]
[1754876841263,0.69,183.39,183.36,39.08]
[1754876841685,0.69,183.38,183.36,39.08]
[1754876841903,0.69,183.37,183.34,0.06]
[1754876842061,5.57349796,183.37,183.34,0.06]
[1754876842261,0.69,183.36,183.34,0.06]
[1754876842469,5.45404963,183.35,183.34,0.06]
[1754876842781,14.41095417,183.35,183.34,0.06]
[1754876842969,15.10095417,183.35,183.34,0.06]
[1754876844175,9.52745621,183.35,183.34,0.06]
[1754876844391,5.45404963,183.35,183.34,0.06]
[1754876844761,5.45375147,183.37,183.34,0.76]
[1754876844983,6.14308883,183.39,183.35,0.7]
[1754876845193,5.57349796,183.38,183.34,0.06]
[1754876845391,4.88349796,183.35,183.34,0.06]
[1754876845768,0.69,183.35,183.34,0.06]
[1754876846167,0.69,183.37,183.34,0.06]
[1754876846380,4.88349796,183.36,183.34,0.06]
[1754876846585,0.69,183.37,183.34,0.06]
[1754876846586,5.45345476,183.37,183.34,0.06]
[1754876846767,10.33695272,183.37,183.34,0.06]
[1754876847106,4.88349796,183.35,183.34,0.06]
[1754876847580,5.57349796,183.35,183.34,0.06]
[1754876847784,0.69,183.35,183.34,0.06]
[1754876847964,5.45345476,183.37,183.34,0.06]
[1754876847965,10.33695272,183.37,183.34,0.06]
[1754876848384,11.02695272,183.37,183.34,0.06]
[1754876848787,5.45345476,183.37,183.34,0.76]
[1754876849387,0.69,183.36,183.34,0.06]
[1754876850097,5.45345476,183.37,183.34,0.06]
[1754876850392,6.16316242,183.38,183.34,0.72]
[1754876850592,5.45316242,183.38,183.35,0.66]
[1754876850892,5.45278666,183.4,183.35,0.66]
[1754876851077,6.16278666,183.4,183.36,0.66]
[1754876851397,5.45278666,183.4,183.37,0.66]
[1754876851700,44.51230479,183.41,183.36,4.88349796]
[1754876852000,4.88349796,183.44,183.38,5.54349796]
[1754876852175,5.59349796,183.44,183.38,5.54349796]
[1754876852365,0.71,183.44,183.38,0.66]
[1754876852567,6.16162681,183.44,183.38,0.66]
[1754876852994,6.16162681,183.44,183.4,4.88349796]
[1754876853187,5.45162681,183.44,183.4,5.54349796]
[1754876853498,44.51111025,183.45,183.42,4.88349796]
[1754876853669,5.45085242,183.46,183.43,5.54349796]
[1754876854289,5.45085242,183.46,183.42,7.72945879]
[1754876854588,6.16085242,183.46,183.42,8.38945879]
[1754876854797,6.16085242,183.46,183.42,0.66]
[1754876855006,6.16085242,183.46,183.42,8.38945879]
[1754876855391,5.48041318,183.48,183.45,7.72945879]
[1754876855608,5.48041318,183.48,183.46,7.72945879]
[1754876855984,5.48041318,183.48,183.44,7.72945879]
[1754876855985,6.19041318,183.48,183.44,7.72945879]
[1754876856292,5.48041318,183.48,183.44,8.38945879]
[1754876856701,0.03,183.48,183.44,0.66]
[1754876856891,0.74,183.48,183.44,8.38945879]
[1754876857697,0.74,183.48,183.44,7.72945879]
[1754876857905,0.71,183.47,183.44,7.72945879]
[1754876858216,0.71,183.47,183.43,7.72945879]
[1754876858423,5.45077946,183.46,183.43,7.72945879]
[1754876858592,5.45077946,183.46,183.44,7.72945879]
[1754876858915,5.45055219,183.47,183.44,8.38945879]
[1754876859092,5.48021498,183.48,183.46,7.72945879]
[1754876859292,0.03,183.48,183.47,8.38945879]
[1754876860709,0.03,183.48,183.47,0.66]
[1754876860916,0.03,183.48,183.47,8.38945879]
[1754876863088,0.03,183.48,183.47,23.49567436]
[1754876863702,0.03,183.48,183.47,0.66]
[1754876863891,0.03,183.48,183.47,8.38945879]
[1754876866606,0.03,183.48,183.47,23.49567436]
[1754876867014,0.03,183.48,183.47,8.38945879]
[1754876867724,0.03,183.48,183.47,0.66]
[1754876868907,0.03,183.48,183.47,8.38945879]
[1754876869107,0.03,183.48,183.47,7.72945879]
[1754876870319,0.03,183.48,183.46,7.72945879]
[1754876870929,0.03,183.48,183.47,7.72945879]
[1754876871504,0.03,183.48,183.47,8.38945879]
[1754876873117,0.03,183.48,183.47,28.94615672]
[1754876873837,0.03,183.48,183.47,55.49120495]
[1754876874652,0.03,183.51,183.5,41.10621557]
[1754876874826,0.03,183.51,183.5,88.40063348]
[1754876875023,0.03,183.51,183.5,94.51022476]
[1754876875839,0.03,183.52,183.51,15.10621557]
[1754876876133,0.03,183.52,183.51,23.49567436]
[1754876876332,0.03,183.52,183.51,20.66363498]
[1754876877318,0.03,183.52,183.51,26.11292929]
[1754876879317,0.03,183.54,183.51,26.11292929]
[1754876879318,0.03,183.54,183.53,46.55491605]
[1754876879515,0.03,183.54,183.53,90.45233546]
[1754876879717,0.03,183.54,183.53,91.15233546]
[1754876879937,0.03,183.54,183.53,86.25491605]
[1754876880162,0.03,183.54,183.53,91.15233546]
[1754876880456,0.03,183.56,183.54,15.10621557]
[1754876880621,0.03,183.62,183.61,4.89741941]
[1754876880822,0.03,183.62,183.61,39.0]
[1754876881149,0.71,183.62,183.59,4.89741941]
[1754876881318,0.68,183.61,183.59,4.89741941]
[1754876881616,0.03,183.62,183.6,21.24829728]
[1754876881817,0.03,183.62,183.61,59.00363498]
[1754876882053,0.03,183.62,183.61,59.70363498]
[1754876882256,0.03,183.62,183.61,59.00363498]
[1754876882431,0.03,183.62,183.61,60.24826762]
[1754876883153,0.03,183.64,183.62,15.10621557]
[1754876883321,0.03,183.64,183.63,20.00363498]
[1754876883525,0.03,183.64,183.63,52.14936824]
[1754876883831,0.03,183.64,183.63,91.12936824]
[1754876884030,0.03,183.64,183.63,65.12936824]
[1754876884231,0.1,183.65,183.63,65.12936824]
[1754876884232,0.1,183.65,183.64,41.10621557]
[1754876884455,0.1,183.65,183.64,46.00363498]
[1754876884950,0.1,183.65,183.64,30.89741941]
[1754876885649,0.1,183.65,183.64,4.89741941]
[1754876885825,0.78,183.65,183.64,4.89741941]
[1754876886030,0.78,183.65,183.63,43.87741941]
[1754876886253,0.68,183.64,183.63,46.69274538]
[1754876886752,0.68,183.64,183.61,38.98]
[1754876886947,0.68,183.63,183.62,7.71274538]
[1754876887464,6.22514021,183.65,183.62,7.71274538]
[1754876887646,0.68,183.64,183.62,7.71274538]
[1754876888128,0.68,183.64,183.63,7.71274538]
[1754876888446,0.1,183.65,183.63,7.71274538]
[1754876888756,0.1,183.65,183.64,7.71274538]
[1754876889128,0.1,183.65,183.64,23.51896095]
[1754876889723,0.1,183.65,183.64,15.80621557]
[1754876889927,0.1,183.65,183.64,23.51896095]
[1754876890157,0.1,183.65,183.64,28.96439767]
[1754876890536,0.1,183.65,183.64,22.81896095]
[1754876891846,0.1,183.65,183.64,28.96439767]
[1754876892248,0.1,183.65,183.64,22.81896095]
[1754876892453,0.1,183.65,183.64,28.26439767]
[1754876892768,0.1,183.65,183.64,28.96439767]
[1754876906884,0.03,183.68,183.64,28.96439767]
[1754876906885,0.03,183.68,183.67,41.10621557]
[1754876907184,0.1,183.69,183.68,15.10621557]
[1754876907388,0.1,183.71,183.68,31.23170633]
[1754876907572,0.1,183.71,183.7,54.26261908]
[1754876907775,0.03,183.76,183.74,48.81896095]
[1754876907967,0.03,183.76,183.74,87.75896095]
[1754876908283,0.03,183.76,183.74,84.93287063]
[1754876909479,0.03,183.76,183.74,90.37534368]
[1754876909655,0.03,183.76,183.74,84.93287063]
[1754876910682,0.03,183.76,183.74,90.37534368]
[1754876910883,0.03,183.76,183.74,91.61959098]
[1754876911182,0.03,183.77,183.76,20.54809628]
[1754876911394,0.03,183.77,183.76,64.91893941]
[1754876911561,0.03,183.77,183.76,65.61893941]
[1754876913186,0.03,183.79,183.78,41.10621557]
[1754876913354,0.03,183.8,183.79,15.10621557]
[1754876913553,0.03,183.8,183.79,20.69287063]
[1754876914388,0.72,183.8,183.79,19.99287063]
[1754876914763,0.72,183.8,183.79,45.99287063]
[1754876914958,0.03,183.8,183.79,45.99287063]
[1754876915575,0.03,183.8,183.79,84.93287063]
[1754876916892,0.72,183.8,183.73,5.44255254]
[1754876917192,0.72,183.8,183.78,4.88665506]
[1754876917366,0.72,183.8,183.77,26.0]
[1754876917367,0.03,183.8,183.79,43.80665506]
[1754876918162,0.72,183.8,183.79,43.80665506]
[1754876919366,0.03,183.8,183.79,58.91287063]
[1754876919669,0.72,183.8,183.79,19.99287063]
[1754876919869,6.1606964,183.8,183.79,38.92]
[1754876920084,6.1606964,183.8,183.79,43.80665506]
[1754876920873,0.72,183.8,183.79,43.80665506]
[1754876921897,0.03,183.8,183.79,43.80665506]
[1754876922475,0.72,183.8,183.79,38.92]
[1754876923565,0.03,183.8,183.79,43.80665506]
[1754876924082,0.72,183.8,183.79,43.80665506]
[1754876925695,0.72,183.8,183.79,38.92]
[1754876925897,0.72,183.8,183.76,0.06]
[1754876925898,11.04735146,183.8,183.76,0.06]
[1754876926197,4.88665506,183.78,183.76,38.98]
[1754876926394,0.69,183.77,183.76,38.98]
[1754876926895,5.57665506,183.77,183.76,0.06]
[1754876927890,11.01823964,183.77,183.76,0.06]
[1754876929383,11.01823964,183.77,183.76,0.06]
[1754876935096,11.01823964,183.77,183.74,0.06]
[1754876935314,4.88665506,183.75,183.72,0.06]
[1754876935479,4.88665506,183.73,183.72,0.06]
[1754876935903,5.57665506,183.73,183.72,0.06]
[1754876936573,11.01942434,183.73,183.72,0.06]
[1754876937571,15.07341076,183.73,183.7,0.06]
[1754876937793,4.88665506,183.71,183.7,0.06]
[1754876938202,5.57665506,183.71,183.7,0.06]
[1754876938613,11.02001688,183.71,183.7,1e-08]
[1754876939603,10.33001688,183.71,183.7,1e-08]
[1754876939983,5.44336182,183.71,183.7,1e-08]
[1754876940189,5.44276928,183.73,183.7,1e-08]
[1754876940490,5.44276928,183.73,183.71,4.88665506]
[1754876940696,5.44188071,183.76,183.72,5.57665506]
[1754876940881,5.44188071,183.76,183.73,0.69]
[1754876941091,5.44188071,183.76,183.71,5.57665506]
[1754876941291,5.44188071,183.76,183.72,0.69]
[1754876942103,4.88665506,183.73,183.7,1e-08]
[1754876942400,4.88665506,183.71,183.7,1e-08]
[1754876942718,6.15188071,183.76,183.7,1e-08]
[1754876942888,11.03853577,183.76,183.71,0.75]
[1754876943088,11.03853577,183.76,183.71,5.63665506]
[1754876943089,6.15188071,183.76,183.71,5.63665506]
[1754876943287,11.03853577,183.76,183.71,5.63665506]
[1754876943489,4.88665506,183.74,183.71,0.06]
[1754876944111,5.44247305,183.74,183.71,0.06]
[1754876944923,10.32912811,183.74,183.71,0.06]
[1754876945305,10.32875241,183.76,183.72,0.69]
[1754876945916,11.04875241,183.76,183.72,0.69]
[1754876946124,10.32875241,183.76,183.71,0.06]
[1754876946421,0.72,183.75,183.71,0.75]
[1754876947121,5.60665506,183.74,183.71,0.06]
[1754876947307,0.72,183.74,183.71,0.06]
[1754876947509,10.32875241,183.76,183.71,0.06]
[1754876947711,10.32875241,183.76,183.72,0.69]
[1754876948027,5.44209735,183.76,183.72,0.69]
[1754876948428,5.44209735,183.76,183.71,0.06]
[1754876948656,0.72,183.75,183.71,0.06]
[1754876948803,4.88665506,183.72,183.71,0.06]
[1754876949125,5.60665506,183.72,183.71,0.06]
[1754876949844,4.88665506,183.73,183.71,0.06]
[1754876950348,4.88665506,183.74,183.71,0.75]
[1754876950515,10.32860535,183.76,183.71,0.06]
[1754876950719,10.32860535,183.76,183.72,0.69]
[1754876951037,10.32860535,183.76,183.71,0.06]
[1754876951038,11.04860535,183.76,183.71,0.06]
[1754876951243,6.16195029,183.76,183.71,4.94665506]
[1754876951541,6.16195029,183.76,183.72,0.69]
[1754876952114,11.04860535,183.76,183.72,0.69]
[1754876953346,0.72,183.75,183.71,0.06]
[1754876953548,5.60665506,183.75,183.71,0.06]
[1754876954738,0.72,183.75,183.71,0.06]
[1754876955052,0.72,183.75,183.71,0.75]
[1754876955428,39.64,183.78,183.72,5.57665506]
[1754876955628,44.52665506,183.78,183.72,0.69]
[1754876955937,44.52665506,183.78,183.72,5.57665506]
[1754876956128,4.88665506,183.75,183.71,0.06]
[1754876956324,4.88665506,183.76,183.71,0.06]
[1754876956524,0.72,183.76,183.72,0.69]
[1754876956737,5.4413134,183.78,183.73,0.69]
[1754876957050,5.4413134,183.78,183.71,0.06]
[1754876957051,4.88665506,183.76,183.71,0.06]
[1754876957418,5.60665506,183.75,183.71,0.06]
[1754876957646,4.88665506,183.73,183.71,0.06]
[1754876958027,0.72,183.73,183.71,0.06]
[1754876958237,0.72,183.75,183.71,0.06]
[1754876958446,5.60665506,183.75,183.71,0.06]
[1754876958650,0.72,183.74,183.71,0.06]
[1754876958833,5.44229212,183.75,183.71,0.06]
[1754876959036,5.44229212,183.75,183.71,0.75]
[1754876959354,6.16229212,183.75,183.71,0.75]
[1754876959931,13.60322124,183.78,183.72,0.69]
[1754876959932,0.72,183.78,183.72,0.69]
[1754876960137,4.88665506,183.77,183.72,0.69]
[1754876960355,0.72,183.77,183.72,5.57665506]
[1754876960577,5.60665506,183.79,183.73,5.57665506]
[1754876960742,5.60665506,183.79,183.73,0.69]
[1754876960743,6.1610647,183.79,183.73,0.69]
[1754876960942,10.32797586,183.78,183.73,0.69]
[1754876961261,5.60665506,183.78,183.72,31.4430644]
[1754876961566,5.44103982,183.79,183.74,5.57665506]
[1754876961737,5.44103982,183.79,183.74,4.88665506]
[1754876961940,6.16103982,183.79,183.75,0.69]
[1754876962745,5.44103982,183.79,183.75,0.69]
[1754876963039,4.91665506,183.8,183.74,4.88665506]
[1754876963040,0.03,183.8,183.76,0.69]
[1754876963238,0.72,183.79,183.74,44.97665506]
[1754876963440,0.72,183.79,183.75,0.69]